{"text_format":"3","workbook":"xlsx","n_sheets":2,"sheets":["CPA","NWOU D&R Tender "],"not_rendered":{"images":1},"read":"whole","date_system":"1900"}

{"sheet":"CPA","index":0,"n_rows":14,"n_cols":1,"rows_kept":14}
["Contract Price Adjustment"]
[]
["X1: Price Adjustment for inflation"]
[]
["The rates provided in the Pricing Data will apply for the first 12 months after the base date. "]
[]
["The base date for indices is (one month before the tender conclusion),from the anniversary date of base date, the rates will be adjusted for inflation using the relevant tables published by the Department of Labour."]
[]
["Labour rates 70% in the Pricing Data will be adjusted as per SEIFSA TABLE C-3 "]
["Transport rates 15% in the Pricing Data will be adjusted as per SEIFSA TABLE L-1"]
["Fixed rates 15% in the Pricing Data will be adjusted "]
["Total 100%"]
[]
["Price fluctuations may result in an increase or decrease in the rates provided in the Pricing Data."]

{"sheet":"NWOU D&R Tender ","index":1,"n_rows":37,"n_cols":6,"rows_kept":37,"merged":[[1,0,1,1],[1,2,1,5],[2,0,2,5],[3,0,3,4],[15,0,15,5],[26,0,28,1],[26,2,28,5],[29,0,30,5],[31,0,31,1],[31,2,31,4],[32,0,32,1],[32,2,32,4],[33,0,33,1],[33,2,33,4],[34,0,36,1],[34,2,34,4]]}
[]
[null,null,"GEMMA CLUSTER NORTH-WEST OPERATING UNIT"]
["SPU (SMALL POWER USER) DISCONNECTION AND RE-CONNECTION FOR NWOU OPERATING UNIT FOR A PERIOD OF 36 MONTHS ON AN \" AS AND WHEN REQUIRED BASIS\""]
["SECTION 1: PRELIMINARIES "]
["Item","Description","Unit","Quantity","Rate","Amount"]
[1,"Health and Safety "]
[1.1,"PPE,Tools and Equipment (Total labour value)"]
["1.1.1","Allow amount for safety file, PPE, tools and equipment to comply with Eskom’s requirements and regulations including adherence to safety standards and procedures"," (%)",{"v":0,"d":"0%"},{"$f":"F24*D8","v":0},{"$f":"SUM(E8)","v":0}]
[1.2,"Transportation (Payment for transport/traveling will be paid for distance covered from slected CNC within a sector to the required site as specified in the NEC document. Cost of transport / travelling (Includes driver, tools, fuel,and any other transport related cost)"]
["1.2.1","Transport Light Duty Vehicle (LDV) 4X4","Km",null,0,{"$f":"SUM(E10:E10)*D10","v":0}]
[1.2,"Accomodation  (Payment  will not be authorised without proof in the form of an invoice from third party supplier)"]
["1.2.1","Accommodation limited to three-star accommodation all inclusive for the contractor's permamnant employees/staff who will be travelling 250km from the selected CNC within a sector as specified in the NEC document. Always provide evidence","P/Night",null,0,{"$f":"SUM(E12:E12)*D12","v":0}]
["TP","TOTAL PRELIMINARIES ",{"$nulls":3},{"$f":"SUM(F8+F12+F10)","v":0}]
["TCFN","TOTAL CARRIED TO FINAL SUMMARY",null,{"$f":"SUM(D8+D10+D12)","v":0},{"$f":"SUM(E8:E12)","v":0},{"$f":"SUM(F13)","v":0}]
[]
["SECTION 2 : DISCONNECTION AND RECONNECTION OF SMALL POWER UNIT (SPU)<100KVA "]
["Item","Description ","Unit","Quantity","Rate","Amount"]
["2.1","DISCONNECTION OF SPU (SMALL POWER USER) "]
["2.1.1","Disconnect SPU meter in accordance with prescribed procedure/standard, sealing of meter and date capturing for Urban Area, Rural Area, Deep rural Monday - Friday (normal working hours)","Each",null,0,{"$f":"E19*D19","v":0}]
["2.1.2","Follow up visit for customers that do not request reconnection after the disconnection, revisit to ensure the point is off for Urban Area, Rural Area, Deep Rural :Monday-Friday (Normal working hours)","Each",null,0,{"$f":"E20*D20","v":0}]
["2.2","RECONNECTION OF SPU "]
["2.2.1","Reconnect SPU meter in accordance with prescribed procedure/standard, sealing of meter and data capturing for Urban Area, Rural Area, Deep rural Monday - Friday (normal working hours)","Each",null,0,{"$f":"SUM(E22)*D22","v":0}]
["2.2.2","Reconnect After Hours SPU meter in accordance with prescribed procedure/standard, sealing of meter and data capturing for Urban Area, Rural Area, Deep rural Monday - Friday (outside normal working hours","Each",null,0,{"$f":"SUM(E23)*D23","v":0}]
["TDC","TOTAL DISCONNECTION AND RECONNECTION",null,{"$f":"D19+D20++D22+D23","v":0},{"$f":"SUM(E19:E23)","v":0},{"$f":"SUM(F19:F23)","v":0}]
["FS","TOTAL CARRIED TO FINAL SUMMARY",{"$nulls":3},{"$f":"SUM(F24+F14)","v":0}]
[]
[" ESKOM HOLDINGS LIMITED",null,"BILLS OF QUANTITIES FOR SPU (SMALL POWER USER) DISCONNECT AND RE-CONNECT  WITHIN NORTH-WEST OPERATING UNIT"]
[]
[]
["FINAL SUMMARY"]
[]
["Section",null,"Core Technical Services",null,null,"Amount"]
[1,null,"Preliminaries",null,null,{"$f":"F14","v":0}]
[2,null,"Disconnectiont and Re-Connection",null,null,{"$f":"F24","v":0}]
["Summary",null,"Sub-Total",null,null,{"$f":"F33+F34","v":0}]
[null,null,"VAT",null,null,{"$f":"F35*0.15","v":0}]
[null,null,"TOTAL CARRIED TO FORM OF OFFER ",null,null,{"$f":"F35+F36","v":0}]